fUSD/lending_fUSD_20250503
["ID","MTS","AMOUNT","RATE_DAILY","PERIOD"]
[359718786,1746276643859,-450.0,0.00019732,2]
[359718787,1746276643868,-450.0,0.00019732,2]
[359718788,1746276643878,-672.04,0.00019732,2]
[359718789,1746276643887,-412.14685447,0.00019732,2]
[359718790,1746276643896,-450.0,0.00019732,2]
[359718791,1746276643906,-450.0,0.00019732,2]
[359718792,1746276643915,-512.52,0.00019732,2]
[359718793,1746276643924,-450.0,0.00019732,2]
[359718794,1746276643934,-1212.56,0.00019732,2]
[359718795,1746276643943,-450.0,0.00019732,2]
[359718796,1746276643953,-450.0,0.00019732,2]
[359718797,1746276643962,-450.0,0.00019732,2]
[359718798,1746276643971,-450.0,0.00019732,2]
[359718799,1746276643981,-565.26,0.00019732,2]
[359718800,1746276643991,-479.31271413,0.00019732,2]
[359718801,1746276644003,-450.0,0.00019732,2]
[359718802,1746276644013,-450.0,0.00019732,2]
[359718803,1746276644023,-450.0,0.00019732,2]
[359718804,1746276644032,-450.0,0.00019732,2]
[359718805,1746276644042,-566.87,0.00019732,2]
[359718806,1746276644052,-474.22776786,0.00019732,2]
[359718807,1746276644062,-474.06297841,0.00019732,2]
[359718808,1746276644073,-450.0,0.00019732,2]
[359718809,1746276644082,-450.0,0.00019732,2]
[359718810,1746276644093,-450.0,0.00019732,2]
[359718811,1746276644102,-474.44796838,0.00019732,2]
[359718812,1746276644112,-463.31822986,0.00019732,2]
[359718813,1746276644121,-500.0,0.00019732,2]
[359718814,1746276644130,-464.02,0.00019732,2]
[359718815,1746276644140,-472.79538287,0.00019732,2]
[359718816,1746276644150,-450.0,0.00019732,2]
[359718817,1746276644160,-450.0,0.00019732,2]
[359718818,1746276644169,-450.0,0.00019732,2]
[359718819,1746276644180,-487.36,0.00019732,2]
[359718820,1746276644189,-450.0,0.00019732,2]
[359718821,1746276644198,-450.0,0.00019732,2]
[359718822,1746276644207,-450.0,0.00019732,2]
[359718823,1746276644217,-450.0,0.00019732,2]
[359718824,1746276644226,-450.0,0.00019732,2]
[359718825,1746276644235,-635.9,0.00019732,2]
[359718826,1746276644244,-450.0,0.00019732,2]
[359718827,1746276644253,-450.0,0.00019732,2]
[359718828,1746276644263,-555.84,0.00019732,2]
[359718829,1746276644272,-450.0,0.00019732,2]
[359718830,1746276644281,-450.0,0.00019732,2]
[359718831,1746276644290,-450.0,0.00019732,2]
[359718832,1746276644299,-1845.44,0.00019732,2]
[359718833,1746276644308,-450.0,0.00019732,2]
[359718834,1746276644318,-450.0,0.00019732,2]
[359718835,1746276644329,-450.0,0.00019732,2]
[359718836,1746276644339,-450.0,0.00019732,2]
[359718837,1746276644348,-450.0,0.00019732,2]
[359718838,1746276644357,-642.49,0.00019732,2]
[359718839,1746276644367,-499.04539545,0.00019732,2]
[359718840,1746276644376,-450.0,0.00019732,2]
[359718841,1746276644385,-478.4757296,0.00019732,2]
[359718842,1746276644394,-898.81,0.00019732,2]
[359718843,1746276644403,-392.80773028,0.00019732,2]
[359718844,1746276644412,-450.0,0.00019732,2]
[359718845,1746276644421,-450.0,0.00019732,2]
[359718846,1746276644430,-450.0,0.00019732,2]
[359718847,1746276644439,-450.0,0.00019732,2]
[359718848,1746276644449,-450.0,0.00019732,2]
[359718849,1746276644458,-450.0,0.00019732,2]
[359718850,1746276644467,-450.0,0.00019732,2]
[359718851,1746276644476,-681.64,0.00019732,2]
[359718852,1746276644485,-450.0,0.00019732,2]
[359718853,1746276644495,-450.0,0.00019732,2]
[359718854,1746276644503,-450.0,0.00019732,2]
[359718855,1746276644512,-450.0,0.00019732,2]
[359718856,1746276644522,-450.0,0.00019732,2]
[359718857,1746276644531,-495.78440254,0.00019732,2]
[359718858,1746276644540,-608.48,0.00019732,2]
[359718859,1746276644550,-450.0,0.00019732,2]
[359718860,1746276644559,-450.0,0.00019732,2]
[359718861,1746276644568,-450.0,0.00019732,2]
[359718862,1746276644577,-450.0,0.00019732,2]
[359718863,1746276644586,-450.0,0.00019732,2]
[359718864,1746276644596,-450.0,0.00019732,2]
[359718865,1746276644605,-1113.91,0.00019732,2]
[359718866,1746276644614,-450.0,0.00019732,2]
[359718867,1746276644622,-500.0,0.00019732,2]
[359718868,1746276644632,-450.0,0.00019732,2]
[359718869,1746276644641,-450.0,0.00019732,2]
[359718870,1746276644651,-450.0,0.00019732,2]
[359718871,1746276644661,-450.0,0.00019732,2]
[359718872,1746276644670,-450.0,0.00019732,2]
[359718873,1746276644679,-869.08,0.00019732,2]
[359718874,1746276644688,-578.56,0.00019732,2]
[359718875,1746276644699,-679.32,0.00019732,2]
[359718876,1746276644709,-639.84,0.00019732,2]
[359718877,1746276644719,-450.0,0.00019732,2]
[359718878,1746276644728,-450.0,0.00019732,2]
[359718879,1746276644737,-450.0,0.00019732,2]
[359718880,1746276644747,-1318.72,0.00019732,2]
[359718881,1746276644755,-450.0,0.00019732,2]
[359718882,1746276644764,-450.0,0.00019732,2]
[359718883,1746276644773,-828.34,0.00019732,2]
[359718884,1746276644782,-241.32496352,0.00019732,2]
[359718885,1746276644792,-450.0,0.00019732,2]
[359718886,1746276644803,-508.42,0.00019732,2]
[359718887,1746276644813,-450.0,0.00019732,2]
[359718888,1746276644822,-450.0,0.00019732,2]
[359718889,1746276644832,-450.0,0.00019732,2]
[359718890,1746276644841,-450.0,0.00019732,2]
[359718891,1746276644851,-524.8,0.00019732,2]
[359718892,1746276644860,-818.15,0.00019732,2]
[359718893,1746276644869,-450.0,0.00019732,2]
[359718894,1746276644878,-450.0,0.00019732,2]
[359718895,1746276644887,-450.0,0.00019732,2]
[359718896,1746276644896,-896.03,0.00019732,2]
[359718897,1746276644905,-1488.74,0.00019732,2]
[359718898,1746276644914,-450.0,0.00019732,2]
[359718899,1746276644923,-450.0,0.00019732,2]
[359718900,1746276644932,-450.0,0.00019732,2]
[359718901,1746276644942,-450.0,0.00019732,2]
[359718902,1746276644951,-632.01,0.00019732,2]
[359718903,1746276644961,-380.67365843,0.00019732,2]
[359718904,1746276644970,-450.0,0.00019732,2]
[359718905,1746276644980,-450.0,0.00019732,2]
[359718906,1746276644991,-450.0,0.00019732,2]
[359718907,1746276645003,-300.0,0.00019732,2]
[359718908,1746276645013,-571.66696018,0.00019732,2]
[359718909,1746276645023,-450.0,0.00019732,2]
[359718910,1746276645032,-450.0,0.00019732,2]
[359718911,1746276645042,-450.0,0.00019732,2]
[359718912,1746276645051,-610.75,0.00019732,2]
[359718913,1746276645061,-562.94,0.00019732,2]
[359718914,1746276645071,-450.0,0.00019732,2]
[359718915,1746276645080,-450.0,0.00019732,2]
[359718916,1746276645090,-450.0,0.00019732,2]
[359718917,1746276645100,-450.0,0.00019732,2]
[359718918,1746276645109,-450.0,0.00019732,2]
[359718919,1746276645119,-450.0,0.00019732,2]
[359718920,1746276645128,-711.06,0.00019732,2]
[359718921,1746276645137,-450.0,0.00019732,2]
[359718922,1746276645147,-1104.21,0.00019732,2]
[359718923,1746276645156,-450.0,0.00019732,2]
[359718924,1746276645165,-450.0,0.00019732,2]
[359718925,1746276645174,-450.0,0.00019732,2]
[359718926,1746276645183,-450.0,0.00019732,2]
[359718927,1746276645192,-450.0,0.00019732,2]
[359718928,1746276645201,-450.0,0.00019732,2]
[359718929,1746276645210,-450.0,0.00019732,2]
[359718930,1746276645219,-450.0,0.00019732,2]
[359718931,1746276645228,-450.0,0.00019732,2]
[359718932,1746276645237,-2564.67,0.00019732,2]
[359718933,1746276645247,-457.37785718,0.00019732,2]
[359718934,1746276645256,-450.0,0.00019732,2]
[359718935,1746276645265,-450.0,0.00019732,2]
[359718936,1746276645274,-450.0,0.00019732,2]
[359718937,1746276645282,-450.0,0.00019732,2]
[359718938,1746276645291,-450.0,0.00019732,2]
[359718939,1746276645300,-450.0,0.00019732,2]
[359718940,1746276645309,-450.0,0.00019732,2]
[359718941,1746276645319,-450.0,0.00019732,2]
[359718942,1746276645328,-450.0,0.00019732,2]
[359718943,1746276645339,-450.0,0.00019732,2]
[359718944,1746276645347,-450.0,0.00019732,2]
[359718945,1746276645357,-450.0,0.00019732,2]
[359718946,1746276645367,-450.0,0.00019732,2]
[359718947,1746276645376,-450.0,0.00019732,2]
[359718948,1746276645386,-450.0,0.00019732,2]
[359718949,1746276645396,-2465.94,0.00019732,2]
[359718950,1746276645406,-450.0,0.00019732,2]
[359718951,1746276645415,-626.48,0.00019732,2]
[359718952,1746276645425,-500.0,0.00019732,2]
[359718953,1746276645437,-450.0,0.00019732,2]
[359718954,1746276645446,-563.87,0.00019732,2]
[359718955,1746276645456,-1032.14,0.00019732,2]
[359718956,1746276645466,-166.2246764,0.00019732,2]
[359718957,1746276645475,-450.0,0.00019732,2]
[359718958,1746276645485,-1210.99,0.00019732,2]
[359718959,1746276645494,-450.0,0.00019732,2]
[359718960,1746276645503,-450.0,0.00019732,2]
[359718961,1746276645513,-2123.75,0.00019732,2]
[359718962,1746276645522,-450.0,0.00019732,2]
[359718963,1746276645531,-450.0,0.00019732,2]
[359718964,1746276645541,-450.0,0.00019732,2]
[359718965,1746276645549,-450.0,0.00019732,2]
[359718966,1746276645558,-481.23,0.00019732,2]
[359718967,1746276645567,-450.0,0.00019732,2]
[359718968,1746276645577,-450.0,0.00019732,2]
[359718969,1746276645586,-461.82,0.00019732,2]
[359718970,1746276645595,-324.99534254,0.00019732,2]
[359718971,1746276645605,-1279.84,0.00019732,2]
[359718972,1746276645614,-260.07111918,0.00019732,2]
[359718973,1746276645623,-450.0,0.00019732,2]
[359718974,1746276645632,-198.04898131,0.00019732,2]
[359718975,1746276645642,-450.0,0.00019732,2]
[359718977,1746276645651,-612.32,0.00019732,2]
[359718978,1746276645660,-450.0,0.00019732,2]
[359718980,1746276645669,-450.0,0.00019732,2]
[359718982,1746276645678,-450.0,0.00019732,2]
[359718983,1746276645689,-450.0,0.00019732,2]
[359718984,1746276645700,-450.0,0.00019732,2]
[359718987,1746276645711,-450.0,0.00019732,2]
[359718989,1746276645720,-450.0,0.00019732,2]
[359718991,1746276645730,-450.0,0.00019732,2]
[359718993,1746276645742,-450.0,0.00019732,2]
[359718995,1746276645753,-450.0,0.00019732,2]
[359718996,1746276645762,-450.0,0.00019732,2]
[359718997,1746276645771,-450.0,0.00019732,2]
[359718998,1746276645779,-450.0,0.00019732,2]
[359718999,1746276645788,-450.0,0.00019732,2]
[359719000,1746276645797,-450.0,0.00019732,2]
[359719001,1746276645806,-450.0,0.00019732,2]
[359719002,1746276645815,-496.24,0.00019732,2]
[359719003,1746276645824,-450.0,0.00019732,2]
[359719004,1746276645833,-519.91,0.00019732,2]
[359719005,1746276645842,-946.73,0.00019732,2]
[359719006,1746276645851,-450.0,0.00019732,2]
[359719007,1746276645860,-789.94,0.00019732,2]
[359719008,1746276645869,-450.0,0.00019732,2]
[359719009,1746276645878,-450.0,0.00019732,2]
[359719010,1746276645887,-450.0,0.00019732,2]
[359719011,1746276645896,-572.36824906,0.00019732,2]
[359719012,1746276645905,-450.0,0.00019732,2]
[359719013,1746276645914,-450.0,0.00019732,2]
[359719014,1746276645923,-450.0,0.00019732,2]
[359719015,1746276645933,-450.0,0.00019732,2]
[359719016,1746276645942,-450.0,0.00019732,2]
[359719017,1746276645951,-450.0,0.00019732,2]
[359719018,1746276645960,-748.41,0.00019732,2]
[359719019,1746276645970,-450.0,0.00019732,2]
[359719020,1746276645979,-450.0,0.00019732,2]
[359719021,1746276645988,-450.0,0.00019732,2]
[359719022,1746276646002,-450.0,0.00019732,2]
[359719023,1746276646011,-450.0,0.00019732,2]
[359719024,1746276646020,-450.0,0.00019732,2]
[359719025,1746276646029,-450.0,0.00019732,2]
[359719026,1746276646039,-450.0,0.00019732,2]
[359719027,1746276646048,-678.65,0.00019732,2]
[359719028,1746276646058,-515.84,0.00019732,2]
[359719029,1746276646068,-400.55990545,0.00019732,2]
[359719030,1746276646078,-593.64,0.00019732,2]
[359719031,1746276646088,-450.0,0.00019732,2]
[359719032,1746276646097,-450.0,0.00019732,2]
[359719033,1746276646107,-826.69,0.00019732,2]
[359719034,1746276646116,-500.0,0.00019732,2]
[359719035,1746276646125,-450.0,0.00019732,2]
[359719036,1746276646135,-628.07395844,0.00019732,2]
[359719037,1746276646144,-438.9479,0.00019733,2]
[359719038,1746276646153,-284.84788632,0.00019733,2]
[359719039,1746276646163,-533.76899943,0.00019733,2]
[359719040,1746276646172,-450.0,0.00019733,2]
[359719041,1746276646182,-450.0,0.00019733,2]
[359719042,1746276646191,-521.7934378,0.00019734,2]
[359719043,1746276646200,-500.0,0.0001974,2]
[359719044,1746276646209,-150.0,0.0001974,2]
[359719045,1746276646218,-155.75221986,0.0001974,2]
[359719046,1746276646227,-500.0,0.0001974,2]
[359719047,1746276646236,-152.6145878,0.0001974,2]
[359719048,1746276646245,-152.14871149,0.0001974,2]
[359719049,1746276646255,-150.0,0.0001974,2]
[359719050,1746276646264,-151.58141224,0.0001974,2]
[359719051,1746276646273,-500.0,0.0001974,2]
[359719052,1746276646282,-160.39430857,0.0001974,2]
[359719053,1746276646292,-500.0,0.0001974,2]
[359719054,1746276646301,-150.0,0.0001974,2]
[359719055,1746276646310,-150.0,0.0001974,2]
[359719057,1746276646319,-518.92159158,0.00019749,2]
[359719058,1746276646327,-500.0,0.00019749,2]
[359719059,1746276646335,-500.0,0.00019749,2]
[359719060,1746276646343,-500.0,0.00019749,2]
[359719061,1746276646351,-1491.82073661,0.00019751,2]
[359719062,1746276646360,-500.0,0.00019773,2]
[359719063,1746276646369,-500.0,0.00019773,2]
[359719064,1746276646378,-501.29466975,0.00019773,2]
[359719065,1746276646387,-170.0108309,0.00019773,2]
[359719066,1746276646395,-500.0,0.00019773,2]
[359719067,1746276646404,-291.86484364,0.00019773,2]
[359719068,1746276646413,-500.0,0.00019773,2]
[359719069,1746276646422,-500.0,0.00019773,2]
[359719070,1746276646431,-500.0,0.00019773,2]
[359719071,1746276646441,-162.1885406,0.00019773,2]
[359719072,1746276646449,-500.0,0.00019773,2]
[359719074,1746276646458,-500.0,0.00019773,2]
[359719075,1746276646467,-500.0,0.00019773,2]
[359719076,1746276646475,-500.0,0.00019773,2]
[359719077,1746276646484,-500.0,0.00019773,2]
[359719078,1746276646493,-500.0,0.00019773,2]
[359719079,1746276646502,-160.11863319,0.00019773,2]
[359719080,1746276646511,-1491.82073661,0.00019781,2]
[359719081,1746276646520,-2529.2232591,0.00019799,2]
[359719082,1746276646529,-1491.82073661,0.00019811,2]
[359719083,1746276646538,-151.0,0.00019826,2]
[359719084,1746276646547,-151.0,0.00019826,2]
[359719085,1746276646556,-151.0,0.00019827,2]
[359719086,1746276646565,-151.0,0.00019828,2]
[359719087,1746276646574,-335.38154665,0.0001983,2]
[359719088,1746276646583,-187.51902884,0.0001983,2]
[359719089,1746276646591,-500.0,0.0001983,2]
[359719090,1746276646600,-194.10746415,0.0001983,2]
[359719091,1746276646610,-186.20409185,0.0001983,2]
[359719092,1746276646621,-299.64495513,0.0001983,2]
[359719093,1746276646630,-500.0,0.0001983,2]
[359719094,1746276646639,-500.0,0.0001983,2]
[359719095,1746276646648,-500.0,0.0001983,2]
[359719096,1746276646657,-500.0,0.0001983,2]
[359719097,1746276646666,-500.0,0.0001983,2]
[359719098,1746276646675,-500.0,0.0001983,2]
[359719099,1746276646684,-208.70888029,0.0001983,2]
[359719100,1746276646693,-500.0,0.0001983,2]
[359719101,1746276646702,-500.0,0.0001983,2]
[359719102,1746276646711,-12500.0,0.00019838,2]
[359719103,1746276646720,-2000.0,0.0001984,2]
[359719104,1746276646729,-1491.82073661,0.0001984,2]
[359719105,1746276646738,-5728.0,0.00019846,2]
[359719106,1746276646748,-150.0,0.00019846,2]
[359719107,1746276646757,-150.50631763,0.00019846,2]
[359719108,1746276646766,-500.0,0.00019846,2]
[359719109,1746276646782,-500.0,0.00019846,2]
[359719110,1746276646792,-150.0,0.00019846,2]
[359719111,1746276646801,-500.0,0.00019846,2]
[359719112,1746276646810,-150.0,0.00019846,2]
[359719113,1746276646819,-500.0,0.00019846,2]
[359719114,1746276646828,-153.14775644,0.00019846,2]
[359719115,1746276646838,-500.0,0.00019846,2]
[359719116,1746276646847,-150.0,0.00019846,2]
[359719117,1746276646856,-12500.0,0.00019847,2]
[359719118,1746276646866,-12500.0,0.00019856,2]
[359719119,1746276646875,-12500.0,0.00019865,2]
[359719120,1746276646884,-1491.82073661,0.0001987,2]
[359719121,1746276646893,-12500.0,0.00019874,2]
[359719122,1746276646902,-12500.0,0.00019882,2]
[359719123,1746276646911,-1933.521,0.00019886,2]
[359719124,1746276646920,-176.492,0.00019888,2]
[359719125,1746276646929,-12500.0,0.00019891,2]
[359719126,1746276646938,-500.0,0.00019899,2]
[359719127,1746276646947,-826.69,0.00019899,2]
[359719128,1746276646956,-500.0,0.00019899,2]
[359719129,1746276646966,-945.53840271,0.000199,2]
[359719130,1746276646975,-12500.0,0.000199,2]
[359719131,1746276646984,-731.75921692,0.000199,2]
[359719132,1746276647360,-761.59947889,0.00019657,2]
[359719133,1746276647370,-178.67052111,0.000199,2]
[359719134,1746276647402,-761.59947889,0.00019657,2]
[359719135,1746276647412,-450.0,0.00019731,2]
[359719136,1746276647422,-900.47926265,0.000199,2]
[359719137,1746276647447,-761.59947889,0.00019657,2]
[359719138,1746276647456,-246.7961346,0.000199,2]
[359719139,1746276647491,-761.59947889,0.00019657,2]
[359719140,1746276647500,-761.59947889,0.00019657,2]
[359719141,1746276647510,-5952.14066682,0.000199,2]
[359719142,1746276647521,-4490.1541979,0.000199,2]
[359719143,1746276647531,-1642.0918021,0.000199,2]
[359719144,1746276647542,-10857.9081979,0.000199,2]
[359719145,1746276647551,-1491.82073661,0.000199,2]
[359719146,1746276647561,-300.15915061,0.000199,2]
[359719147,1746276647570,-1290.95436738,0.000199,2]
[359719148,1746276647579,-372.82159589,0.000199,2]
[359719149,1746276647589,-182.5163147,0.000199,2]
[359719150,1746276647598,-8963.25889371,0.000199,2]
[359719151,1746276647608,-500.0,0.00019918,2]
[359719152,1746276647618,-500.0,0.00019973,2]
[359719153,1746276647627,-258.61412107,0.00019973,2]
[359719154,1746276647819,-490.30116499,0.00019657,2]
[359719155,1746276647830,-271.2983139,0.00019657,2]
[359719156,1746276647840,-209.8616861,0.00019657,2]
[359719157,1746276647851,-523.68620605,0.00019657,2]
[359719158,1746276647863,-28.05158674,0.00019657,2]
[359719159,1746276647872,-761.59947889,0.00019657,2]
[359719160,1746276647883,-761.59947889,0.00019657,2]
[359719161,1746276647893,-761.59947889,0.00019657,2]
[359719162,1746276647903,-761.59947889,0.00019657,2]
[359719163,1746276647913,-761.59947889,0.00019657,2]
[359719164,1746276647922,-761.59947889,0.00019657,2]
[359719165,1746276647932,-366.33056747,0.00019973,2]
[359719166,1746276647942,-527.4996018,0.00019973,2]
[359719167,1746276647952,-532.23391832,0.00019973,2]
[359719168,1746276647962,-160.45164529,0.00019973,2]
[359719169,1746276647972,-501.21994559,0.00019973,2]
[359719170,1746276647982,-500.0,0.00019973,2]
[359719171,1746276647994,-369.03481286,0.00019973,2]
[359719172,1746276648003,-500.0,0.00019973,2]
[359719173,1746276648013,-505.92257895,0.00019973,2]
[359719174,1746276648023,-500.0,0.00019973,2]
[359719175,1746276648032,-502.98408913,0.00019973,2]
[359719176,1746276648043,-539.24803438,0.00019973,2]
[359719177,1746276648053,-505.26039964,0.00019973,2]
[359719178,1746276648063,-517.26161729,0.00019973,2]
[359719179,1746276648075,-500.0,0.00019973,2]
[359719180,1746276648085,-500.0,0.00019973,2]
[359719181,1746276648096,-152.63342926,0.00019973,2]
[359719182,1746276648107,-160.20238278,0.00019973,2]
[359719183,1746276648117,-504.43483647,0.00019973,2]
[359719184,1746276648128,-500.0,0.00019973,2]
[359719185,1746276648138,-500.0,0.00019973,2]
[359719186,1746276648148,-334.33492292,0.00019985,2]
[359719187,1746276648159,-450.0,0.00019985,2]
[359719188,1746276648170,-450.0,0.00019985,2]
[359719189,1746276648179,-512.40616649,0.00019985,2]
[359719190,1746276648189,-450.0,0.00019985,2]
[359719191,1746276648199,-450.0,0.00019985,2]
[359719192,1746276648209,-450.0,0.00019985,2]
[359719193,1746276648219,-450.0,0.00019985,2]
[359719194,1746276648229,-450.0,0.00019985,2]
[359719195,1746276648238,-450.0,0.00019985,2]
[359719196,1746276648248,-500.0,0.00019985,2]
[359719197,1746276648258,-500.0,0.00019985,2]
[359719198,1746276648267,-826.69,0.00019985,2]
[359719199,1746276648277,-500.0,0.00019985,2]
[359719200,1746276648286,-121789.8952801,0.00019986,2]
[359719201,1746276648296,-19102.9330557,0.00019986,2]
[359719202,1746276648306,-115967.9446045,0.00019986,2]
[359719203,1746276648315,-8100.7539848,0.00019986,2]
[359719204,1746276648325,-500.0,0.00019998,2]
[359719205,1746276648335,-366.20032378,0.00019999,2]
[359719206,1746276648346,-300.0,0.00019999,2]
[359719207,1746276648356,-500.0,0.00019999,2]
[359719208,1746276648366,-500.0,0.00019999,2]
[359719209,1746276648376,-500.0,0.00019999,2]
[359719210,1746276648386,-300.0,0.00019999,2]
[359719211,1746276648395,-548.69815494,0.00019999,2]
[359719212,1746276648405,-463.24295261,0.00019999,2]
[359719213,1746276648415,-826.69,0.00019999,2]
[359719214,1746276648425,-826.69,0.00019999,2]
[359719215,1746276648434,-826.69,0.00019999,2]
[359719216,1746276648444,-826.69,0.00019999,2]
[359719217,1746276648454,-826.69,0.00019999,2]
[359719218,1746276648463,-826.69,0.00019999,2]
[359719219,1746276648473,-826.69,0.00019999,2]
[359719220,1746276648483,-826.69,0.00019999,2]
[359719221,1746276648494,-826.69,0.00019999,2]
[359719222,1746276648504,-826.69,0.00019999,2]
[359719223,1746276648513,-826.69,0.00019999,2]
[359719224,1746276648523,-826.69,0.00019999,2]
[359719225,1746276648533,-826.69,0.00019999,2]
[359719226,1746276648543,-826.69,0.00019999,2]
[359719227,1746276648553,-826.69,0.00019999,2]
[359719228,1746276648563,-826.69,0.00019999,2]
[359719229,1746276648573,-826.69,0.00019999,2]
[359719230,1746276648585,-826.69,0.00019999,2]
[359719231,1746276648595,-826.69,0.00019999,2]
[359719232,1746276648605,-826.81550993,0.00019999,2]
[359719233,1746276648615,-500.0,0.00019999,2]
[359719234,1746276648624,-500.0,0.00019999,2]
[359719235,1746276648634,-500.0,0.00019999,2]
[359719236,1746276648645,-500.0,0.00019999,2]
[359719237,1746276648654,-500.0,0.00019999,2]
[359719238,1746276648664,-353.05,0.00019999,2]
[359719239,1746276648674,-1481.0,0.00019999,2]
[359719240,1746276648684,-482.17675895,0.0002,2]
[359719241,1746276648694,-2298899.31281033,0.0002,2]
[359719242,1746276648704,-1314836.28823183,0.0002,2]
[359719243,1746276648714,-500.15071,0.0002,2]
[359719244,1746276648725,-208.0,0.0002,2]
[359719245,1746276648735,-208.0,0.0002,2]
[359719246,1746276648746,-208.0,0.0002,2]
[359719247,1746276648755,-208.0,0.0002,2]
[359719248,1746276648765,-208.0,0.0002,2]
[359719249,1746276648775,-208.0,0.0002,2]
[359719250,1746276648785,-208.0,0.0002,2]
[359719251,1746276648796,-208.0,0.0002,2]
[359719252,1746276648806,-208.0,0.0002,2]
[359719253,1746276648816,-208.0,0.0002,2]
[359719254,1746276648827,-208.0,0.0002,2]
[359719255,1746276648837,-208.0,0.0002,2]
[359719256,1746276649141,-208.0,0.0002,2]
[359719257,1746276649151,-208.0,0.0002,2]
[359719258,1746276649162,-208.0,0.0002,2]
[359719259,1746276649172,-208.0,0.0002,2]
[359719260,1746276649183,-211.0,0.0002,2]
[359719261,1746276649193,-211.0,0.0002,2]
[359719262,1746276649202,-211.0,0.0002,2]
[359719263,1746276649212,-156.343,0.0002,2]
[359719264,1746276649222,-250.0,0.0002,2]
[359719265,1746276649232,-250.0,0.0002,2]
[359719266,1746276649242,-250.0,0.0002,2]
[359719267,1746276649252,-250.0,0.0002,2]
[359719268,1746276649261,-250.0,0.0002,2]
[359719269,1746276649270,-250.0,0.0002,2]
[359719270,1746276649280,-250.0,0.0002,2]
[359719271,1746276649289,-250.0,0.0002,2]
[359719272,1746276649299,-250.0,0.0002,2]
[359719273,1746276649309,-250.0,0.0002,2]
[359719274,1746276649319,-374.1,0.0002,2]
[359719275,1746276649329,-386.0,0.0002,2]
[359719276,1746276649339,-177.43781961,0.0002,3]
[359719277,1746276649349,-880663.21499949,0.0002,2]
[359719278,1746276649369,-412.34341,0.0002,2]
[359719279,1746276649728,-450.0,0.0001973,2]
[359719280,1746276649738,-13.125,0.00019731,2]
[359719281,1746276650118,-450.0,0.0001973,2]
[359719282,1746276650128,-436.875,0.00019731,2]
[359719283,1746276650137,-450.0,0.00019731,2]
[359719284,1746276650147,-476.55,0.00019731,2]
[359719285,1746276650157,-450.0,0.00019731,2]
[359719286,1746276650167,-16715.84290359,0.0002,2]
[359719287,1746276650179,-46069.5609662,0.0002,2]
[359719288,1746276650195,-299.99,0.0002,2]
[359719289,1746276650207,-5873.05827066,0.0002,2]
[359719290,1746276650219,-928.40309998,0.0002,2]
[359719291,1746276650238,-2556.88728274,0.0002,2]
[359719292,1746276650249,-1793.06,0.0002,2]
[359719293,1746276650261,-368.91631683,0.0002,2]
[359719294,1746276650277,-4899.75366782,0.0002,2]
[359719295,1746276650289,-3405.55913296,0.0002,2]
[359719296,1746276650302,-1863.00486732,0.0002,2]